Cogmind - Beta 10.1 @@@ ROGUE MODE // 2021.06.30 @ 06:46:27 // Winter2019/RPGLIKE Player: Farfid Result: Destroyed by EX-DEC with AWS/EX-DEC Performance ------------- Evolutions (0) 0 Regions Visited (3) 600 Robots Destroyed (9) 45 Value Destroyed (203) 203 Prototype IDs (26) 520 Alien Tech Used (0) 0 Bonus (213) 213 TOTAL SCORE: 1581 Bonus ------- Aligned with FarCom 300 Friendly Fire -87 Cogmind --------- Core Integrity 0/700 Matter 295/300 Energy 265/265 System Corruption 2% Temperature Cool (0) Movement Core (150) Ox2 Location -10/Exiles Parts ------- > --- POWER (1) -------- Improved Ion Engine > --- PROPULSION (2) --- (None) > --- UTILITY (3) ------ Improved Heat Sink Targeting Computer > --- WEAPON (2) ------- AWS/Gauss > --- INVENTORY (2) ---- (None) Peak State ------------ > --- POWER ------------ Improved Ion Engine > --- PROPULSION ------- Wheel Compact Wheel > --- UTILITY ---------- Improved Heat Sink Targeting Computer Light Armor Plating > --- WEAPON ----------- AWS/Gauss > --- INVENTORY -------- Protomatter [Rating: 25] Favorites ----------- Power Improved Ion Engine Engine Improved Ion Engine Propulsion Wheel Wheel Wheel Utility Improved Heat Sink Device Improved Heat Sink Processor Targeting Computer Protection Light Armor Plating Weapon Beam Rifle Energy Gun Beam Rifle Ballistic Gun Assault Rifle Build | -11 -10 -10 -10 ------- Run | Scr Mat Min Exi Slots Evolved 4 | 3 . 1 . Power . | . . . . Propulsion 1 | 1 . . . Utility 2 | 1 . 1 . Weapon 1 | 1 . . . Parts Attached 13 | 5 1 5 2 Power 2 | 1 . 1 . Engine 2 | 1 . 1 . Core . | . . . . Reactor . | . . . . Propulsion 2 | 2 . . . Treads . | . . . . Leg . | . . . . Wheel 2 | 2 . . . Hover . | . . . . Flight . | . . . . Utility 3 | . 1 2 . Device 1 | . 1 . . Storage . | . . . . Processor 1 | . . 1 . Hackware . | . . . . Protection 1 | . . 1 . Artifact . | . . . . Weapon 6 | 2 . 2 2 Energy Gun 2 | . . 2 . Energy Cannon . | . . . . Ballistic Gun 4 | 2 . . 2 Ballistic Cannon . | . . . . Launcher . | . . . . Special Weapon . | . . . . Impact Weapon . | . . . . Slashing Weapon . | . . . . Piercing Weapon . | . . . . Special Melee Weapon . | . . . . Unidentified Prototypes . | . . . . Parts Lost 3 | . . . 3 Power . | . . . . Propulsion 2 | . . . 2 Utility 1 | . . . 1 Weapon . | . . . . Highest Loss Streak 2 | . . . 2 Average Slot Usage (%) 91 | . 75 92 94 Engine 12 | . 14 13 12 Wheel 25 | . 28 26 23 Device 11 | . 4 13 12 Processor 8 | . . 6 12 Protection 7 | . . 6 10 Energy Gun 14 | . . 13 18 Ballistic Gun 9 | . 28 12 3 Naked Turns . | . . . . Heaviest Build 21 | 7 8 17 21 Greatest Support 31 | 31 31 31 31 Greatest Overweight (x) 2 | . . . 2 Average Overweight (x) . | . . . . Largest Inventory Capacity 2 | 1 1 1 2 Average Capacity 1 | 1 1 1 1 Most Carried 2 | . . 1 2 Average Carried . | . . . 1 Final Capacity 2 | 1 1 1 2 Final Carried 1 | . . 1 . Class Distribution -------------------- 56% | Scavenger-Mutant 43% | Mutant Dominant Class ---------------- Mutant | -10/Materials Scavenger-Mutant | -10/Mines Scavenger-Mutant | -10/Exiles Resources | -11 -10 -10 -10 ----------- Run | Scr Mat Min Exi Matter Collected 448 | 250 77 121 . Remotely . | . . . . Salvage Created 166 | . 77 46 43 Parts 11 | . 9 2 . Haulers Intercepted . | . . . . Recyclers Shooed . | . . . . Parts Field Recycled . | . . . . Retrieved Matter . | . . . . Parts Self-Destructed . | . . . . Prevented . | . . . . Kills | -11 -10 -10 -10 ------- Run | Scr Mat Min Exi Combat Hostiles Destroyed 8 | . 5 2 1 Guns 8 | . 5 2 1 Classes Destroyed 3 | . 2 . 1 Turret 1 | . . . 1 Swarmer 3 | . 3 . . Grunt 4 | . 2 2 . Best Kill Streak 3 | . 3 2 1 Combat Bots Only 3 | . 3 2 1 Max Kills in Single Turn 1 | . 1 1 1 Gunslinging . | . . . . Exploded . | . . . . Melee . | . . . . Uniques/NPCs Destroyed 3 | . . . 3 EX-HEX (-10/Exiles) EX-BIN (-10/Exiles) 8R-AWN (-10/Exiles) Combat | -11 -10 -10 -10 -------- Run | Scr Mat Min Exi Damage Taken 1639 | . 247 166 1226 Core 1276 | . 197 138 941 Absorbed by Shields . | . . . . Redirected to Core 988 | . 158 92 738 Core Remaining (%) 100 | 100 . . . Volleys Fired 32 | . 17 14 1 Largest 2 | . 2 2 2 Hottest 112 | . 40 112 112 Shots Fired 124 | . 34 28 62 Gun 124 | . 34 28 62 Cannon . | . . . . Launcher . | . . . . Special . | . . . . Kinetic 106 | . 34 12 60 Thermal 18 | . . 16 2 Explosive . | . . . . Electromagnetic . | . . . . Robot Hit Streak 26 | . 13 7 26 Robot Miss Streak 3 | . 3 1 1 Penetration Max . | . . . . Secondary Targets . | . . . . Autonomous 61 | . . . 61 Shots Hit Robots 92 | . 22 14 56 Core Hits 27 | . 8 5 14 Critical Hits 2 | . . . 2 Critical Kills . | . . . . Critical Parts Destroyed 1 | . . . 1 Melee Attacks . | . . . . Impact . | . . . . Slashing . | . . . . Piercing . | . . . . Sneak Attacks . | . . . . Combat Hostiles . | . . . . Follow-up Attacks . | . . . . Damage Inflicted 2003 | . 252 214 1537 Guns 2003 | . 252 214 1537 Cannons . | . . . . Explosions . | . . . . Melee . | . . . . Ramming . | . . . . Kinetic 1918 | . 252 158 1508 Thermal 85 | . . 56 29 Explosive . | . . . . Electromagnetic . | . . . . Impact . | . . . . Slashing . | . . . . Piercing . | . . . . Highest Corruption 2 | . . . 2 Average Corruption 1 | . . . 1 Corruption Purged . | . . . . Overload Shots . | . . . . Overflow Damage . | . . . . Projectiles . | . . . . Explosions . | . . . . Melee . | . . . . Knockbacks . | . . . . Impact . | . . . . Kinetic . | . . . . Secondary . | . . . . Self-Inflicted Damage . | . . . . Shots . | . . . . Rammed . | . . . . Targets Rammed . | . . . . Kicked . | . . . . Crushed . | . . . . Highest Temperature . | . . . . Average Temperature . | . . . . Received Heat Transfer 213 | . 111 102 . Siege Activations . | . . . . Robots Corrupted . | . . . . Combat Hostiles . | . . . . Parts Fried . | . . . . Impact Corruptions . | . . . . Robots Melted . | . . . . Combat Hostiles . | . . . . Parts Melted . | . . . . Heat Transferred 222 | . . 148 74 Parts Sabotaged . | . . . . Parts Stolen . | . . . . Parts Stripped . | . . . . Power Chain Reactions . | . . . . Missiles Intercepted . | . . . . Alert | -11 -10 -10 -10 ------- Run | Scr Mat Min Exi Peak Influence 184 | . 184 121 . Initial 71 | . . 71 . Average 87 | . 83 96 . Maximum Alert Level . | . . . . Low Security (%) 100 | 100 100 100 . Level 1 . | . . . . Level 2 . | . . . . Level 3 . | . . . . Level 4 . | . . . . Level 5 . | . . . . High Security . | . . . . Max Security . | . . . . Squads Dispatched 2 | . 1 1 . Investigation 1 | . 1 . . Extermination . | . . . . Reinforcement . | . . . . Assault 1 | . . 1 . Garrison . | . . . . Intercept . | . . . . Construction Impeded . | . . . . Haulers Reinforced . | . . . . Stealth | -11 -10 -10 -10 --------- Run | Scr Mat Min Exi Distress Signals 1 | . 1 . . Communications Jammed . | . . . . Distress Signals . | . . . . Times Spotted 23 | . 7 2 14 Peak Tracking Total 8 | . 6 2 8 Tactical Retreats 1 | . . . 1 Traps | -11 -10 -10 -10 ------- Run | Scr Mat Min Exi Traps Triggered . | . . . . Indirectly . | . . . . Trap Hack Attempts . | . . . . Triggered . | . . . . Disarmed . | . . . . Reprogrammed . | . . . . Reused . | . . . . Traps Extracted . | . . . . Installed . | . . . . Triggered . | . . . . Machines | -11 -10 -10 -10 ---------- Run | Scr Mat Min Exi Machines Disabled 5 | . 1 . 4 Max in Single Turn 1 | . 1 . 1 Machines Sabotaged . | . . . . Garrisons Compromised . | . . . . Overloaded Fab Kills . | . . . . Fab Network Shutdowns . | . . . . Hacking | -11 -10 -10 -10 --------- Run | Scr Mat Min Exi Machines Accessed 5 | . 4 . 1 Terminals 3 | . 3 . . Fabricators . | . . . . Repair Stations . | . . . . Recycling Units 1 | . 1 . . Scanalyzers . | . . . . Garrison Access . | . . . . Total Hacks 9 | . 8 . 1 Successful 6 | . 5 . 1 Failed 3 | . 3 . . Catastrophic . | . . . . Database Lockouts . | . . . . Manual 7 | . 6 . 1 Terminals 7 | . 7 . . Fabricators . | . . . . Repair Stations . | . . . . Recycling Units 1 | . 1 . . Scanalyzers . | . . . . Garrison Access . | . . . . Terminal Hacks 5 | . 4 . 1 Prototype ID Bank 3 | . 3 . . Branch Access Points 1 | . 1 . . EX-Prototype ID Bank 1 | . . . 1 Fabricator Hacks . | . . . . Repair Station Hacks . | . . . . Recycling Unit Hacks . | . . . . Scanalyzer . | . . . . Garrison Access Hacks . | . . . . Unauthorized Hacks 1 | . 1 . . Terminals . | . . . . Fabricators . | . . . . Repair Stations . | . . . . Recycling Units 1 | . 1 . . Tunnel 1 | . 1 . . Scanalyzers . | . . . . Garrison Access . | . . . . Data Cores Recovered . | . . . . Used . | . . . . Hacking Detections 3 | . 3 . . Full Trace Events . | . . . . Feedback Events . | . . . . Feedback Blocked . | . . . . Robot Schematics Acquired . | . . . . Robots Built . | . . . . Matter . | . . . . Time . | . . . . Total Robot Build Rating . | . . . . Part Schematics Acquired . | . . . . Parts Built . | . . . . Matter . | . . . . Time . | . . . . Total Part Build Rating . | . . . . Parts Repaired . | . . . . Time . | . . . . Parts Recycled . | . . . . Recycled Matter . | . . . . Retrieved Matter . | . . . . Retrieved Components . | . . . . Parts Scanalyzed . | . . . . Part Schematics Acquired . | . . . . Parts Damaged . | . . . . Bothacking | -11 -10 -10 -10 ------------ Run | Scr Mat Min Exi Used RIF Installer . | . . . . Robots Hacked . | . . . . Non-combat . | . . . . Combat . | . . . . Robot Hacks Applied . | . . . . Relay Couplers Released . | . . . . Robots Rewired . | . . . . Allies Hacked . | . . . . Hacks Repelled . | . . . . Allies | -11 -10 -10 -10 -------- Run | Scr Mat Min Exi Total Allies 1 | . . 1 . Largest Group 1 | . . 1 1 Highest-Rated Group 31 | . . 31 31 Highest-Rated Ally 31 | . . 31 31 Total Orders . | . . . . Ally Attacks 27 | . . . 27 Total Damage 960 | . . . 960 Kills 9 | . . . 9 Allies Corrupted . | . . . . Allies Melted . | . . . . Turrets Deployed 3 | . . . 3 Intel | -11 -10 -10 -10 ------- Run | Scr Mat Min Exi Robot Analysis Total . | . . . . Derelict Logs Recovered 1 | . . 1 . Drone Launches . | . . . . Drone Recoveries . | . . . . Exploration | -11 -10 -10 -10 ------------- Run | Scr Mat Min Exi Turns Passed 1315 | 44 131 494 646 Spaces Moved 1167 | 45 72 448 602 Core 10 | 8 . . 2 Treads . | . . . . Legs . | . . . . Wheels 1157 | 37 72 448 600 Hover . | . . . . Flight . | . . . . Fastest Speed 50 | 50 90 90 80 Average Speed 89 | 81 90 90 90 Slowest Speed 150 | 90 90 90 150 Overloaded Moves . | . . . . Propulsion Burnouts . | . . . . Robots Hopped . | . . . . Cave-ins Triggered . | . . . . Exploration Rate (%) 45 | 4 23 94 62 Regions Visited 3 Branch Regions 2 Pre-discovered Areas 1 | . 1 . . Known Exits Taken 1 | . 1 . . Unknown Exits Taken 2 | 1 . 1 . Scrap Searched 1 | . . 1 . Spaces Dug . | . . . . Terrain Destroyed 1 | . . . 1 Melee . | . . . . Projectile 1 | . . . 1 AOE . | . . . . Terrain Rammed . | . . . . Walls Destroyed . | . . . . Machines Disabled . | . . . . Actions | -11 -10 -10 -10 --------- Run | Scr Mat Min Exi Total 1368 | 49 103 510 706 Wait 111 | . 5 30 76 Move 1164 | 44 71 447 602 Hop . | . . . . Pick Up 6 | . . 1 5 Fast Attach 12 | 5 1 4 2 Attach . | . . . . Detach . | . . . . Swap 1 | . . 1 . Drop 12 | . . 3 9 Fire 32 | . 17 14 1 Melee . | . . . . Ram . | . . . . Kick . | . . . . Crush . | . . . . Escape Stasis . | . . . . Rewire . | . . . . Trap . | . . . . Miscellaneous 30 | . 9 10 11 Route ------- -11/Scrapyard -10/Materials (discovered 2 exits: *Min x2) -10/Mines (discovered 3 exits: [*Mat x2] / *Exi) -10/Exiles History --------- Turn | Location | Event 1 | -11/Scrapyard | Upgraded with Propulsion slot (x1) 1 | -11/Scrapyard | Upgraded with Utility slot (x1) 1 | -11/Scrapyard | Upgraded with Weapon slot (x1) 14 | -11/Scrapyard | Discovered new exit (range 15) 45 | -11/Scrapyard | Entered Materials 58 | -10/Materials | Identified exit to Mines 176 | -10/Materials | Entered Mines 188 | -10/Mines | Reached level 2 189 | -10/Mines | Met a Derelict bent on vengeance 267 | -10/Mines | Discovered new exit (range 5) 312 | -10/Mines | Build established: Mutant 316 | -10/Mines | Discovered new exit (range 6) 353 | -10/Mines | Learned Materials security intel 400 | -10/Mines | Joined a pair of Derelicts in attacking an 0b10 outpost 420 | -10/Mines | Upgraded with Utility slot (x1) 598 | -10/Mines | Met a Derelict testing a Signal Generator 661 | -10/Mines | Deemed a non-threat by the Exiles lab entrance 661 | -10/Mines | Discovered new exit (range 5) 670 | -10/Mines | Entered Exiles 670 | -10/Exiles | Accompanied by 1 ally 696 | -10/Exiles | Met 8R-AWN 721 | -10/Exiles | Build established: Scavenger-Mutant 755 | -10/Exiles | Met EX-HEX 782 | -10/Exiles | Met EX-BIN 793 | -10/Exiles | Aligned with FarCom system 794 | -10/Exiles | Given EX-Vault access code 815 | -10/Exiles | Opened EX-Vault 851 | -10/Exiles | Found Deploy-a-Sentry 872 | -10/Exiles | Warned to stay clear of 0b10 Research branches 906 | -10/Exiles | DAS Turret deployed 949 | -10/Exiles | Found Deploy-a-Sentry 995 | -10/Exiles | DAS Turret deployed 1039 | -10/Exiles | Found Deploy-a-Sentry 1087 | -10/Exiles | DAS Turret deployed 1096 | -10/Exiles | Attacked by the Exiles 1097 | -10/Exiles | Allies destroyed EX-HEX 1102 | -10/Exiles | Allies destroyed EX-BIN 1156 | -10/Exiles | Found AWS/Gauss 1197 | -10/Exiles | Core integrity fell below 50% 1204 | -10/Exiles | Destroyed 8R-AWN 1310 | -10/Exiles | Core integrity fell below 20% 1316 | -10/Exiles | Destroyed by EX-DEC with AWS/EX-DEC Last Messages --------------- 01196_ Penetrated by HV Slug. 01200_ Destroyed Prototype Protection. 01201_ Slug penetrates 8R-AWN. 01204_ 8R-AWN destroyed. 01215_ Acquired Protomatter-50. 01216_ Dropped Protomatter-29. 01220_ Used Protomatter to restore core integrity (+87, depleted) 01221_ Dropped Protomatter-50. 01227_ Used Protomatter to restore core integrity (+150, depleted) 01248_ Machine disabled. 01252_ Lgt. Armor Plating destroyed. 01258_ Com. Wheel destroyed. 01260_ Slug penetrates DAS Turret. 01262_ DAS Turret destroyed. 01298_ AM-PHS destroyed. 01298_ Slug penetrates EX-DEC. 01300_ AWS/Gauss suddenly breaks down. 01303_ Dropped Broken AWS/Gauss. 01306_ Acquired Broken AWS/Gauss. 01312_ Wheel destroyed. Map ----- +----------------------------------------------------+ | ??????????#"" % ## ##???"" | | ??????????#"" ""?? | | ??????????## ? | | ???????????# """ | | ???????????## | | ????????????#" " "" | | ????????????#""" ""#? ##""" " " " | | ????????????#"" ""###? ?#####""" "" | | ????????????#" """"##??????????###"""" | | ????????????#"" """#?????????????##### | | ????????????## ""##?????????????????? | | ?????????????#"" z z"""##??????????????????? | | ?????????????##""" ##???????????????????? | | ??????????????##"""" ##????????????????????? | | ???????????????### #?????????????????????? | | ?????????????????##### ##?????????????????????? | | ?????????????????????## #??????????????????????? | | ??????????????????????# #??????????????????????? | | ??????????????????????# #??????????????????????? | | ??????????????????????# #??????????????????????? | | ??????????????????????# #??????????????????????? | | ??????????????????????# #??????????????????????? | | ??????????????????????# #??????????????????????? | | ??????????????????????# #??????????????????????? | | ??????????????????????# * #??????????????????????? | | ??????????????????????# %@#??????????????????????? | | ??????????????????????# #??????????????????????? | | ?????????????????????"" "??????????????????????? | | ??????????????????? ?????????????????????? | | ????????????????? c ????????????????????? | | ???????????????? ????????????????????? | | ??????????????? ???????????????????? | | ??????????????? "" ??????????????????? | | ??????????????? " """" """"?????????????????? | | ??????????????""?########"""##???????????????????? | | ????????????????????????? "????????????????????? | | ????????????????????????? ""????????????????????? | | ?????????????????????????"""?????????????????????? | | ?????????????????????????????????????????????????? | | ?????????????????????????????????????????????????? | | ?????????????????????????????????????????????????? | | ?????????????????????????????????????????????????? | | ?????????????????????????????????????????????????? | | ?????????????????????????????????????????????????? | | ?????????????????????????????????????????????????? | | | | | | | | | | | +----------------------------------------------------+ Best States ------------- Heat Dissipation 63 Energy Generation 12 Energy Capacity 265 Matter Stores 300 Matter Capacity 300 Sight Range 16 Terrain Scan Density 10 Armor Coverage 150 Resistance: KI 5 Resistance: TH 5 Evasion (%) 44 Targeting Accuracy 5 Item Schematics ----------------- None Robot Schematics ------------------ None Fabricated ------------ Nothing Alien Tech Used ----------------- None Achievements -------------- None Challenges ------------ None RPGLIKE | -11 -10 -10 -10 --------- Run | Scr Mat Min Exi Levels Raised 1 | . . 1 . XP Earned 4995 | 3000 895 750 350 XP Spent 4230 | 2930 . 800 500 Upgrades 16 | 14 . 1 1 Propulsion Slot 1 | 1 . . . Utility Slot 2 | 1 . 1 . Weapon Slot 1 | 1 . . . Core Integrity 2 | 2 . . . Heat Dissipation 4 | 4 . . . Mass Support 1 | 1 . . . Inventory Capacity 2 | 1 . . 1 Ranged Accuracy 1 | 1 . . . KI Resistance % 1 | 1 . . . TH Resistance % 1 | 1 . . . Protomatter Created 157 | . 65 42 50 Integrity Restored 627 | . 195 195 237 Core 572 | . 195 140 237 Parts 55 | . . 55 . Protomatter Decayed 3 | . . . 3 Game ------ Seed MatterTitaniumSuperbattery Manual? 0 Play Time 00:13:32 Cumulative 491.7 hours Start 2021.06.30 @ 06:37:14 End 2021.06.30 @ 06:46:27 Sessions 1 Manual Loads 0 Difficulty Rogue Special Mode Winter2019/RPGLIKE Game No. 180 Rogue 180 Adventurer 0 Explorer 0 Win Type - Total 37 Types 24/2/6/2/2/0/0/0/1 Lore% 86 Gallery% 92 Achievement% 82 Wizard Run 0 Options --------- ASCII 0 Keyboard 0 Movement Mouse Keybinds 0 Fullscreen 2 Font 12/Smallcaps Map View 83x54 Tactical HUD 1 Map Filters NONE Filters NONE Steam X RUN: 28069d4a-049f-4834-93bf-f132b9a45fce